Cogmind - Beta 14 @@@ ROGUE MODE // 2024.08.25 @ 06:54:22 Player: Zaros426 Result: Destroyed by Triborg with Siege Cannon Performance ------------- Evolutions (1) 500 Regions Visited (6) 1200 Robots Destroyed (73) 365 Value Destroyed (1929) 1929 Prototype IDs (24) 480 Alien Tech Used (0) 0 Bonus (593) 593 TOTAL SCORE: 5067 Bonus ------- High Alert Combat Kills 11 Follower Combat Kills 294 Registered with UFD 300 Friendly Fire -12 Cogmind --------- Core Integrity 0/400 Matter 225/300 Energy 265/265 System Corruption 0% Temperature Cool (0) Movement Treading (250) Ox1 Location -9/Scraptown Parts ------- > --- POWER (1) -------- Improved Ion Engine > --- PROPULSION (2) --- Armored Treads Armored Treads > --- UTILITY (4) ------ High-capacity Storage Unit Improved Light Armor Plating A0-MCA's Component Scanner > --- WEAPON (2) ------- Mini Grenade Launcher Heavy Hammer > --- INVENTORY (20) --- Cooling System Structural Scanner 0b10 Decoder Chip [Looter] Improved Trap Extractor (5/6 Dirty Bomb) EM Pulse Gun Siege Cannon Replica Improved Datajack Plasma Cutter CPS Tube (2) CPS Tube (2) Junk Cannon (4) PL-3XN's Ring of Power Peak State ------------ > --- POWER ------------ Deuterium Engine > --- PROPULSION ------- Armored Huge Wheel > --- UTILITY ---------- High-capacity Storage Unit Improved Light Armor Plating Hacking Suite A0-MCA's Component Scanner > --- WEAPON ----------- Junk Cannon > --- INVENTORY -------- Improved Ion Engine Improved Ion Engine Spiked Treads Armored Treads Armored Treads Armored Treads Armored Treads Improved Medium Treads Cooling System Structural Scanner 0b10 Decoder Chip [Looter] Heavy Armor Plating Improved Trap Extractor EM Pulse Gun Shotgun Mini Grenade Launcher Plasma Cutter Heavy Hammer [Rating: 44] Favorites ----------- Power Deuterium Engine Engine Deuterium Engine Propulsion Compact Wheel Treads Light Treads Wheel Compact Wheel Utility Improved Light Armor Plating Device Structural Scanner Storage High-capacity Storage Unit Processor Targeting Computer Hackware Hacking Suite Protection Improved Light Armor Plating Weapon Particle Cannon Energy Gun EM Pulse Gun Energy Cannon Particle Cannon Ballistic Gun Shotgun Ballistic Cannon Light Cannon Launcher Grenade Launcher Special Weapon Junk Cannon Impact Weapon Heavy Hammer Piercing Weapon Makeshift Spear Special Melee Weapon Improved Datajack Build | -11 -10 -10 -9 -9 -9 -9 ------- Run | Yrd Mat Min Mat Sto Rec Scr Slots Evolved 2 | . . . 2 . . . Power . | . . . . . . . Propulsion . | . . . . . . . Utility 2 | . . . 2 . . . Weapon . | . . . . . . . Parts Attached 131 | 8 24 15 31 21 12 20 Power 6 | 1 1 2 . . . 2 Engine 6 | 1 1 2 . . . 2 Core . | . . . . . . . Reactor . | . . . . . . . Propulsion 37 | 3 5 4 15 . 5 5 Treads 19 | 2 3 2 7 . 1 4 Leg . | . . . . . . . Wheel 18 | 1 2 2 8 . 4 1 Hover . | . . . . . . . Flight . | . . . . . . . Utility 38 | 2 4 3 9 13 2 5 Device 18 | 1 1 1 6 7 2 . Storage 7 | 1 2 1 . 1 . 2 Processor 2 | . 1 . . . . 1 Hackware 1 | . . . . 1 . . Protection 10 | . . 1 3 4 . 2 Artifact . | . . . . . . . Weapon 50 | 2 14 6 7 8 5 8 Energy Gun 9 | 1 4 3 1 . . . Energy Cannon 9 | . . . 3 4 2 . Ballistic Gun 3 | 1 . . 1 . . 1 Ballistic Cannon 6 | . 4 2 . . . . Launcher 10 | . 5 1 2 1 . 1 Special Weapon 4 | . 1 . . . . 3 Impact Weapon 5 | . . . . 2 1 2 Slashing Weapon . | . . . . . . . Piercing Weapon 1 | . . . . 1 . . Special Melee Weapon 3 | . . . . . 2 1 Unidentified Prototypes . | . . . . . . . Parts Lost 6 | . . . 1 . . 5 Power 1 | . . . . . . 1 Propulsion 4 | . . . 1 . . 3 Utility 1 | . . . . . . 1 Weapon . | . . . . . . . Highest Loss Streak 5 | . . . 1 . . 5 To Critical Strikes 3 | . . . . . . 3 Average Slot Usage (%) 98 | . 99 100 99 100 100 96 Engine 11 | . 14 14 11 11 11 11 Treads 10 | . 18 17 14 22 8 . Wheel 12 | . 9 10 7 . 13 19 Device 7 | . 5 . 10 11 11 7 Storage 11 | . 14 14 11 11 11 11 Processor 3 | . 8 9 . . . 3 Hackware 6 | . . . . 4 11 10 Protection 10 | . . 3 21 17 11 10 Energy Gun 3 | . 12 13 4 . . . Energy Cannon 9 | . . . 10 21 17 9 Ballistic Cannon 2 | . 7 13 . . . . Launcher 1 | . 6 1 1 . . . Impact Weapon 2 | . . . . . 3 6 Special Melee Weapon 1 | . . . . . . 3 Peak Build Rating 44 | 7 8 15 26 25 25 44 Average Rating 20 | 5 7 11 21 22 22 25 On Entrance 14 | . 7 8 15 24 24 21 Naked Turns . | . . . . . . . Heaviest Build 211 | 13 31 38 45 61 61 211 Greatest Support 40 | 40 40 40 40 40 40 40 Greatest Overweight (x) 7 | . 1 2 4 1 3 7 Average Overweight (x) 1 | . . 1 1 1 2 1 Largest Inventory Capacity 35 | 8 15 15 15 20 20 35 Average Capacity 17 | 7 11 15 15 15 20 20 Most Carried 20 | 6 15 15 15 18 20 20 Average Carried 16 | 3 10 14 14 15 19 19 Final Capacity 20 | 8 15 15 15 20 20 20 Final Carried 20 | 6 15 14 15 18 20 15 Class Distribution -------------------- 52% | Commander-Mutant 47% | Mutant Dominant Class ---------------- Mutant | -10/Materials Mutant | -10/Mines Mutant | -9/Materials Mutant | -9/Storage Commander-Mutant | -9/Recycling Commander-Mutant | -9/Scraptown Resources | -11 -10 -10 -9 -9 -9 -9 ----------- Run | Yrd Mat Min Mat Sto Rec Scr Matter Collected 2017 | 295 502 261 299 417 143 100 Remotely . | . . . . . . . Salvage Created 2436 | 37 728 190 336 888 257 . Parts 144 | 8 40 14 31 41 10 . Haulers Intercepted 3 | . 1 . . 2 . . Recyclers Shooed 1 | . 1 . . . . . Parts Field Recycled . | . . . . . . . Retrieved Matter . | . . . . . . . Parts Self-Destructed . | . . . . . . . Prevented . | . . . . . . . Kills | -11 -10 -10 -9 -9 -9 -9 ------- Run | Yrd Mat Min Mat Sto Rec Scr Combat Hostiles Destroyed 46 | . 15 7 6 16 2 . Guns 7 | . 4 1 2 . . . Cannons 30 | . 7 2 4 15 2 . AOE 9 | . 4 4 . 1 . . Classes Destroyed 11 | 1 8 . 2 . . . Worker 3 | . 1 . 1 1 . . Builder 1 | . . . 1 . . . Tunneler 4 | 2 . 1 1 . . . Hauler 3 | . 1 . . 2 . . Recycler 5 | . 3 . . . 2 . Operator 4 | . 2 . 1 1 . . Watcher 7 | . 3 . 3 1 . . Swarmer 7 | . 3 3 1 . . . Grunt 24 | . 11 4 1 8 . . Sentry 14 | . . . 4 8 2 . Subdweller 1 | . 1 . . . . . Best Kill Streak 7 | 1 7 3 2 5 2 . Combat Bots Only 5 | . 3 3 1 5 1 . Max Kills in Single Turn 3 | 1 2 3 1 2 1 . Gunslinging . | . . . . . . . Exploded 3 | . 1 3 . 1 . . Melee . | . . . . . . . Uniques/NPCs Destroyed . | . . . . . . . Combat | -11 -10 -10 -9 -9 -9 -9 -------- Run | Yrd Mat Min Mat Sto Rec Scr Hostile Shots Fired 307 | . 43 9 23 51 11 170 Missed 118 | . 16 1 10 17 4 70 Damage Taken 3167 | . 390 175 200 431 129 1842 Core 544 | . 82 47 18 29 18 350 Absorbed by Shields . | . . . . . . . Core Remaining (%) 74 | 100 . 48 . . . . Volleys Fired 176 | 5 63 15 35 42 10 6 Largest 2 | 2 2 2 2 2 2 1 Hottest 136 | 60 100 75 136 136 136 . Shots Fired 306 | 9 102 25 59 86 19 6 Gun 90 | 9 45 10 26 . . . Cannon 191 | . 45 14 28 85 19 . Launcher 16 | . 9 1 5 1 . . Special 9 | . 3 . . . . 6 Kinetic 90 | 5 54 14 17 . . . Thermal 135 | . 3 . 28 85 19 . Explosive 16 | . 9 1 5 1 . . Electromagnetic 59 | 4 36 10 9 . . . Impact 6 | . . . . . . 6 Robot Hit Streak 12 | 5 8 7 7 12 11 . Robot Miss Streak 6 | 1 6 2 6 2 1 . Penetration Max . | . . . . . . . Secondary Targets . | . . . . . . . Shots Hit Robots 205 | 6 54 16 34 57 35 3 Core Hits 92 | 2 32 12 20 22 4 . Critical Kills . | . . . . . . . Critical Parts Destroyed . | . . . . . . . Critical Strikes 4 | . 1 3 . . . . Blast 4 | . 1 3 . . . . Melee Attacks 38 | . . . . 2 22 14 Impact 13 | . . . . 1 1 11 Slashing . | . . . . . . . Piercing 1 | . . . . 1 . . Sneak Attacks 20 | . . . . . 18 2 Combat Hostiles 7 | . . . . . 7 . Follow-up Attacks . | . . . . . . . Damage Inflicted 4387 | 77 1497 406 821 1294 292 . Guns 788 | 77 339 90 282 . . . Cannons 2485 | . 468 155 348 1222 292 . Explosions 1114 | . 690 161 191 72 . . Melee . | . . . . . . . Ramming . | . . . . . . . Kinetic 917 | 35 537 155 190 . . . Thermal 2083 | . 126 52 391 1222 292 . Explosive 893 | . 564 109 148 72 . . Electromagnetic 494 | 42 270 90 92 . . . Impact . | . . . . . . . Slashing . | . . . . . . . Piercing . | . . . . . . . Highest Corruption 4 | . 1 2 4 4 4 . Average Corruption 3 | . 1 1 3 4 4 . Corruption Purged . | . . . . . . . Corruption Blocked . | . . . . . . . Effects 68 | . 1 10 9 28 20 . Message Errors 19 | . . 4 3 5 7 . Matter Fused 11 | . . 2 1 6 2 . Heat Flow Errors 10 | . . 2 2 4 2 . Energy Discharges 11 | . . . 2 5 4 . Parts Rejected 1 | . . . . 1 . . Parts Fused 1 | . . 1 . . . . Data Loss (minor) 5 | . . . . 2 3 . Data Loss (major) 3 | . . . . 2 1 . Misfires 2 | . . . . 2 . . Alerts 3 | . 1 . . 1 1 . Weapon Failures 2 | . . 1 1 . . . Overload Shots . | . . . . . . . Overflow Damage 22 | . 6 . 8 5 3 . Projectiles 8 | . . . . 5 3 . Explosions 14 | . 6 . 8 . . . Melee . | . . . . . . . Knockbacks 2 | . 1 1 . . . . Impact . | . . . . . . . Kinetic 2 | . 1 1 . . . . Secondary . | . . . . . . . Self-Inflicted Damage 41 | . 19 . 22 . . . Shots 2 | . 1 . 1 . . . Rammed . | . . . . . . . Targets Rammed . | . . . . . . . Kicked . | . . . . . . . Crushed . | . . . . . . . Highest Temperature 268 | . 90 268 178 194 235 . Average Temperature 58 | . 37 89 42 53 85 . Received Heat Transfer 582 | . 138 69 45 168 18 144 Siege Activations . | . . . . . . . Robots Corrupted . | . . . . . . . Combat Hostiles . | . . . . . . . Parts Fried . | . . . . . . . Impact Corruptions . | . . . . . . . Robots Melted . | . . . . . . . Combat Hostiles . | . . . . . . . Parts Melted 3 | . . . 1 2 . . Heat Transferred 3493 | . 150 . 679 2146 518 . Parts Sabotaged . | . . . . . . . Parts Stolen . | . . . . . . . Parts Stripped . | . . . . . . . Power Chain Reactions 4 | . 2 1 1 . . . Alert | -11 -10 -10 -9 -9 -9 -9 ------- Run | Yrd Mat Min Mat Sto Rec Scr Peak Influence 540 | 10 372 154 175 540 102 . Initial 36 | . 6 31 . 16 36 . Average 124 | 2 191 46 65 276 33 . Maximum Alert Level 2 | . 1 . . 2 . . Low Security (%) 75 | 100 46 100 100 32 100 . Level 1 19 | . 53 . . 42 . . Level 2 5 | . . . . 24 . . Level 3 . | . . . . . . . Level 4 . | . . . . . . . Level 5 . | . . . . . . . High Security . | . . . . . . . Max Security . | . . . . . . . Squads Dispatched 11 | . 4 1 2 4 . . Investigation 3 | . 1 1 . 1 . . Extermination . | . . . . . . . Reinforcement 6 | . 3 . 2 1 . . Assault . | . . . . . . . Garrison 2 | . . . . 2 . . Intercept . | . . . . . . . Searches Triggered . | . . . . . . . Construction Impeded . | . . . . . . . Haulers Reinforced . | . . . . . . . Active Scanning Responses . | . . . . . . . Cargo Convoy Interrupts . | . . . . . . . Stealth | -11 -10 -10 -9 -9 -9 -9 --------- Run | Yrd Mat Min Mat Sto Rec Scr Distress Signals 5 | . 3 . 1 1 . . Communications Jammed . | . . . . . . . Distress Signals . | . . . . . . . Times Spotted 90 | . 20 4 16 32 6 12 Peak Tracking Total 18 | . 3 2 3 4 3 18 Tactical Retreats 3 | . . . . 1 . 2 Traps | -11 -10 -10 -9 -9 -9 -9 ------- Run | Yrd Mat Min Mat Sto Rec Scr Traps Triggered 8 | . 2 2 4 . . . Indirectly . | . . . . . . . Trap Hack Attempts . | . . . . . . . Triggered . | . . . . . . . Disarmed . | . . . . . . . Reprogrammed . | . . . . . . . Reused 3 | . . 3 . . . . Traps Extracted 5 | . . 5 . . . . Installed 3 | . . 3 . . . . Triggered 3 | . . 3 . . . . Most Traps Carried 5 | . . 5 5 5 5 5 Machines | -11 -10 -10 -9 -9 -9 -9 ---------- Run | Yrd Mat Min Mat Sto Rec Scr Machines Disabled 8 | . 4 1 . 1 . 2 Max in Single Turn 2 | . 2 1 . 1 . 1 Garrison Access 1 | . . . . 1 . . Machines Repaired . | . . . . . . . Machines Dismantled . | . . . . . . . Machines Sabotaged . | . . . . . . . Overloaded Fab Kills . | . . . . . . . Hacking | -11 -10 -10 -9 -9 -9 -9 --------- Run | Yrd Mat Min Mat Sto Rec Scr Machines Accessed 39 | . 4 3 7 12 7 6 Terminals 26 | . 4 2 5 10 5 . Fabricators . | . . . . . . . Repair Stations 2 | . . . 1 1 . . Recycling Units . | . . . . . . . Scanalyzers 1 | . . . 1 . . . Garrison Access 1 | . . . . 1 . . Total Hacks 141 | . 10 9 27 28 37 30 Successful 99 | . 3 3 15 18 30 30 Failed 42 | . 7 6 12 10 7 . Catastrophic 4 | . . . 3 . 1 . Database Lockouts . | . . . . . . . Manual 34 | . 5 8 12 9 . . Terminals 69 | . 10 8 14 24 13 . Fabricators . | . . . . . . . Repair Stations 5 | . . . 3 2 . . Recycling Units . | . . . . . . . Scanalyzers 10 | . . . 10 . . . Garrison Access 2 | . . . . 2 . . Terminal Hacks 83 | . 2 3 3 15 30 30 Record 45 | . . . . . 24 21 Part Schematic 1 | . . . . . 1 . Robot Analysis 14 | . 1 2 1 2 . 8 Prototype ID Bank 3 | . . . . 3 . . Open Door 4 | . . 1 . 3 . . Branch Access Points 1 | . . . . 1 . . Alert Level 5 | . . . 1 3 1 . Unreport Threat 5 | . 1 . 1 2 1 . Locate Traps 1 | . . . . 1 . . Transport Status 1 | . . . . . 1 . Zone Layout 2 | . . . . . 2 . Derelict Proto ID Bank 1 | . . . . . . 1 Fabricator Hacks . | . . . . . . . Repair Station Hacks 2 | . . . 1 1 . . Scan Component 2 | . . . 1 1 . . Recycling Unit Hacks . | . . . . . . . Scanalyzer 9 | . . . 9 . . . Insert Component 5 | . . . 5 . . . Analyze 4 | . . . 4 . . . Garrison Access Hacks 1 | . . . . 1 . . Seal Access 1 | . . . . 1 . . Unauthorized Hacks 4 | . 1 . 2 1 . . Terminals 4 | . 1 . 2 1 . . Botnet 4 | . 1 . 2 1 . . Fabricators . | . . . . . . . Repair Stations . | . . . . . . . Recycling Units . | . . . . . . . Scanalyzers . | . . . . . . . Garrison Access . | . . . . . . . Data Cores Recovered 1 | . 1 . . . . . Used . | . . . . . . . Hacking Detections 28 | . 4 2 7 10 5 . Full Trace Events 2 | . . 1 . 1 . . Feedback Events . | . . . . . . . Feedback Blocked . | . . . . . . . Robot Schematics Acquired . | . . . . . . . Robots Built . | . . . . . . . Authchips . | . . . . . . . Time . | . . . . . . . Total Robot Build Rating . | . . . . . . . Part Schematics Acquired 4 | . . . 3 . 1 . Parts Built . | . . . . . . . Authchips . | . . . . . . . Time . | . . . . . . . Total Part Build Rating . | . . . . . . . Parts Repaired . | . . . . . . . Time . | . . . . . . . Parts Recycled . | . . . . . . . Recycled Matter . | . . . . . . . Retrieved Matter . | . . . . . . . Retrieved Components . | . . . . . . . Parts Scanalyzed 4 | . . . 4 . . . Part Schematics Acquired 3 | . . . 3 . . . Parts Damaged 1 | . . . 1 . . . Bothacking | -11 -10 -10 -9 -9 -9 -9 ------------ Run | Yrd Mat Min Mat Sto Rec Scr Used RIF Installer . | . . . . . . . Robots Hacked 7 | . . . . . 5 2 Non-combat 3 | . . . . . 3 . Combat 4 | . . . . . 2 2 Robot Hacks Applied 7 | . . . . . 5 2 parse_system 7 | . . . . . 5 2 Relay Couplers Released . | . . . . . . . Fabnet Peak Effective % . | . . . . . . . Robots Rewired 6 | . . . . . 6 . Allies Hacked . | . . . . . . . Hacks Repelled . | . . . . . . . Allies | -11 -10 -10 -9 -9 -9 -9 -------- Run | Yrd Mat Min Mat Sto Rec Scr Total Allies 16 | . . . . 10 6 . Largest Group 10 | . . . . 10 7 6 Highest-Rated Group 88 | . . . . 88 75 69 Highest-Rated Ally 16 | . . . . 16 16 16 Total Orders 10 | . . . . . 4 6 FOLLOW 1 | . . . . . 1 . TUNNEL 2 | . . . . . 2 . DROP 1 | . . . . . . 1 PICKUP 5 | . . . . . 1 4 COLLECT 1 | . . . . . . 1 Ally Attacks 96 | . . . . 74 8 14 Total Damage 833 | . . . . 565 118 150 Kills 14 | . . . . 11 3 . Allies Corrupted . | . . . . . . . Allies Melted . | . . . . . . . Intel | -11 -10 -10 -9 -9 -9 -9 ------- Run | Yrd Mat Min Mat Sto Rec Scr Robot Analysis Total 13 | . 1 2 1 1 . 8 Derelict Logs Recovered 2 | . . 2 . . . . Drone Launches . | . . . . . . . Drone Recoveries . | . . . . . . . Exploration | -11 -10 -10 -9 -9 -9 -9 ------------- Run | Yrd Mat Min Mat Sto Rec Scr Turns Passed 9840 | 138 1178 1350 947 1302 1119 3806 Spaces Moved 6411 | 71 729 960 491 432 663 3065 Core 5 | 5 . . . . . . Treads 991 | 65 151 208 100 432 21 14 Legs . | . . . . . . . Wheels 5415 | 1 578 752 391 . 642 3051 Hover . | . . . . . . . Flight . | . . . . . . . Fastest Speed 50 | 50 100 115 130 250 115 115 Average Speed 134 | 151 121 130 153 250 138 117 Slowest Speed 570 | 160 160 160 250 250 250 570 Overloaded Moves . | . . . . . . . Propulsion Burnouts . | . . . . . . . Robots Hopped . | . . . . . . . Cave-ins Triggered . | . . . . . . . Exploration Rate (%) 72 | 4 96 98 46 75 94 96 Regions Visited 6 Branch Regions 4 Pre-discovered Areas 1 | . . . . 1 . . Known Exits Taken 2 | . . . 1 1 . . Unknown Exits Taken 4 | 1 1 1 . . 1 . Scrap Searched 9 | . . 1 . . . 8 Spaces Dug 12 | . 3 . . 1 1 7 Terrain Destroyed 136 | . 61 13 43 11 1 7 Melee 7 | . . . . 1 1 5 Projectile 5 | . 3 . . . . 2 AOE 124 | . 58 13 43 10 . . Terrain Rammed . | . . . . . . . Walls Destroyed . | . . . . . . . Machines Disabled . | . . . . . . . Actions | -11 -10 -10 -9 -9 -9 -9 --------- Run | Yrd Mat Min Mat Sto Rec Scr Total 7306 | 89 911 1034 621 564 837 3250 Wait 391 | . 68 11 45 55 125 87 Move 6405 | 70 728 959 490 431 662 3065 Hop . | . . . . . . . Pick Up 79 | 6 16 13 9 6 3 26 Fast Attach 17 | 7 1 . 3 2 1 3 Attach 20 | . . 1 4 1 . 14 Detach 2 | . . . 2 . . . Swap 94 | 1 23 14 24 18 11 3 Drop 81 | . 12 18 9 7 3 32 Fire 176 | 5 63 15 35 42 10 6 Melee 38 | . . . . 2 22 14 Ram . | . . . . . . . Kick . | . . . . . . . Crush . | . . . . . . . Escape Stasis . | . . . . . . . Rewire . | . . . . . . . Trap 3 | . . 3 . . . . Miscellaneous . | . . . . . . . Route ------- -11/Scrapyard -10/Materials (discovered 5 exits: *Mat x3 / *Min x2) -10/Mines (discovered 2 exits: *Mat x2) -9/Materials (discovered 4 exits: [*Mat] / [*Min] / *Sto x2) -9/Storage (discovered 2 exits: [*Mat] / *Rec) -9/Recycling (discovered 2 exits: [*Fac] / *Scr) -9/Scraptown (discovered 2 exits: [*Fac x2]) History --------- Turn | Location | Event 18 | -11/Scrapyard | Discovered new exit (range 15) 139 | -11/Scrapyard | Entered Materials 302 | -10/Materials | Build established: Mutant 639 | -10/Materials | Derelicts attacked the area 743 | -10/Materials | Discovered new exit (range 8) 796 | -10/Materials | Discovered new exit (range 5) 1062 | -10/Materials | Discovered new exit (range 13) 1157 | -10/Materials | Discovered new exit (range 7) 1237 | -10/Materials | Discovered new exit (range 5) 1317 | -10/Materials | Entered Mines 1385 | -10/Mines | Found a hidden stash of uninstalled traps 1415 | -10/Mines | Assembled infested the area 1420 | -10/Mines | Assisted by a Guerilla fighting off Assembled 1635 | -10/Mines | Found a damaged Exp. Sensor Array with a note attached 1640 | -10/Mines | Found Prototype Device 1848 | -10/Mines | A weapon hastily lodged in a ceiling crevice suddenly fell to the ground 1862 | -10/Mines | Discovered new exit (range 9) 1968 | -10/Mines | Discovered new exit (range 5) 1978 | -10/Mines | Learned Materials stockpile data 2019 | -10/Mines | Met a Derelict who couldn't figure out how to use a Trap Extractor 2026 | -10/Mines | Core integrity fell below 50% 2667 | -10/Mines | Entered Materials 2667 | -9/Materials | Evolved 2 slots: Utility x2 2668 | -9/Materials | Identified exit to Storage 3170 | -9/Materials | Identified Exp. Sensor Array 3343 | -9/Materials | Discovered new exit (range 5) 3458 | -9/Materials | Discovered exit to Storage (range 9) 3547 | -9/Materials | Discovered new exit (range 15) 3614 | -9/Materials | Entered Storage 4057 | -9/Storage | Learned location of Armory (-4) 4266 | -9/Storage | Garrison activated, responded to threat 4366 | -9/Storage | Assisted by bots powering up and referring to "LRC-V3" 4422 | -9/Storage | Discovered new exit (range 16) 4427 | -9/Storage | Identified exit to Recycling 4461 | -9/Storage | Lost 3 allies 4674 | -9/Storage | Build established: Commander-Mutant 4788 | -9/Storage | Lost 4 allies 4908 | -9/Storage | Used back door to open Recycling access 4916 | -9/Storage | Entered Recycling 4916 | -9/Recycling | Accompanied by 1 ally 4917 | -9/Recycling | Met a Zionite searching for Scraptown 4917 | -9/Recycling | Joined Warlord attack on 0b10 via Recycling 5365 | -9/Recycling | Discovered new exit (range 10) 5806 | -9/Recycling | Scanned before Scraplab entrance 5820 | -9/Recycling | Discovered new exit (range 11) 5824 | -9/Recycling | Entered Scraplab 6035 | -9/Recycling | Entered Scraptown 6035 | -9/Scraptown | Accompanied by 6 allies 6035 | -9/Scraptown | System corruption cleaned by C-Scrubber 6267 | -9/Scraptown | Visited Bundlers 6338 | -9/Scraptown | Visited Assassins FH 6388 | -9/Scraptown | Visited Fellowship of the Rings 6700 | -9/Scraptown | Discovered new exit (range 5) 6784 | -9/Scraptown | Visited Red Mages 6834 | -9/Scraptown | Visited Junk Repository 7060 | -9/Scraptown | Visited Spacefarers 7116 | -9/Scraptown | Visited Cave Peace 7576 | -9/Scraptown | Found Relay Coupler [Proto] 7721 | -9/Scraptown | Visited UFD Registry 7738 | -9/Scraptown | Registered with UFD as "Pipeslicer" 7779 | -9/Scraptown | Visited Scrap Suit Storage 7863 | -9/Scraptown | Visited Science Guys 7913 | -9/Scraptown | Visited Analyses Database 7948 | -9/Scraptown | Visited A0-MCA Data Center 7955 | -9/Scraptown | Given a B rating by A0-MCA 7974 | -9/Scraptown | Visited Junk Cannon Lab 8091 | -9/Scraptown | Discovered new exit (range 3) 8143 | -9/Scraptown | Visited Infowarlord's Domain 8163 | -9/Scraptown | Visited Curators Association 8206 | -9/Scraptown | Visited Chapter 10 8240 | -9/Scraptown | Visited Scrapoid Research Area 8699 | -9/Scraptown | Visited Junk Repository 8799 | -9/Scraptown | Found A0-MCA's Component Scanner 9216 | -9/Scraptown | Found Junk Cannon 9688 | -9/Scraptown | Attacked by Scraptown defenders 9763 | -9/Scraptown | Found PL-3XN's Ring of Power 9783 | -9/Scraptown | Found Vmp. Humpback 9792 | -9/Scraptown | Lost 6 allies 9816 | -9/Scraptown | Found Siege Cannon Replica 9822 | -9/Scraptown | Core integrity fell below 50% 9841 | -9/Scraptown | Destroyed by Triborg with Siege Cannon Last Messages --------------- 09812_ Penetrated by Slug. 09812_ Critical hit (Destroy). 09816_ Acquired Siege Cannon Replica. 09816_ Slug penetrates Wall. 09819_ Penetrated by Slug. 09819_ Machine disabled. 09821_ Critical hit (Destroy). 09821_ Arm. Treads destroyed. 09821_ Penetrated by Slug. 09821_ AS-4CR(E) suffers critical hit (Destroy). 09823_ Hvy. Armor Plating destroyed. 09824_ Penetrated by Slug. 09824_ Enclosure breached. 09828_ Penetrated by Slug. 09831_ X2-XPT(E) heat short circuits Scrap Suit. 09835_ Penetrated by Slug. 09839_ Penetrated by Siege Slug. 09839_ Siege Slug penetrates Wall. 09841_ IS-SF3(E) heat damages Scrap Suit. 09841_ Penetrated by Siege Slug. Map ----- +----------------------------------------------------+ | "## ""!""""""##?????????? | | "## """""""""##?????????? | | "## """"##?????????? | | "## """"##?????????? | | " """"##?????????? | | """""""""""""""""""" "## """""""""##?????????? | | """""""""""""""""""" "## """""""""##?????????? | | ################"" "##""""""""""##?????????? | | ###########"" "##############?????????? | | X"##??????##"" "#############??????????? | | "" ###????####"" "############???????????? | | "" X"##########"" "############???????????? | | " ######### #"" = "## ##???????????? | | "" ##???????????? | | "" "## ##???????????? | | " ######### #"" "## ##???????????? | | "" ""##########"" "## ##???????????? | | "" ###????####"" "############???????????? | | ""##??????##"" "############???????????? | | ###########"" "#############??????????? | | ################"" "##"###"###"##??????????? | | """""""""""""""""""" z"## "=" "&" # ##????????? | | """""""""""""""""""" x "" "" ####????????? | | p c % "## "##????????? | | x !! ;;E " ###????????? | | %j !%@;; t !##?????????? | | ]!!;; ;##????????? | | # E "##????????? | | """" """"""""""" """"" ## E ####????????? | | #### ########### ######c ## " = # ##????????? | | ### # ##""#""### ##??????????? | | "###" ### %#############??????????? | | " "###"" ## #########??????????????? | | """ ""###"""" ## ##?????????????????????? | | """ ###"" " ## #############??????????? | | """ " ###"""" ## ########"#########?????? | | " """###"" ##p | # # #?????? | | """###"" ## =*!## #????? | | """### " ### %=%*" [ ##?????? | | " " " ###""""""""""# [ #= #?????? | | """"" ############## # #####?????? | | ####################### ##############?????????? | | ####################### #############??????????? | | ""##"""##"""##"""##" "# """"##?????????????????? | | ""##" "##"""##"" ##"=*# "" "##?????????????????? | | "##?????????????????? | | " "##?????????????????? | | = """"##?????????????????? | | ""##"" ##" "##!!%##"" ## #######?????????????????? | | ""##"""##"""##"""##"""##########?????????????????? | +----------------------------------------------------+ Best States ------------- Heat Dissipation 50 Energy Generation 14 Energy Capacity 275 Matter Stores 300 Matter Capacity 300 Sight Range 16 Terrain Scan Density 10 Armor Coverage 600 Evasion (%) 40 Targeting Accuracy 5 Recoil Reduction 2 Offensive Hacking 10 Trap Extractor Capacity 6 Item Schematics ----------------- Signal Interpreter | -9/Materials | Scanalyzed Hvy. Armor Plating | -9/Materials | Scanalyzed Structural Scanner | -9/Materials | Scanalyzed Core Analyzer | -9/Recycling | Hacked Robot Schematics ------------------ None Fabricated ------------ Nothing Alien Tech Used ----------------- None Achievements -------------- None Challenges ------------ None Game ------ Seed FlightMetaLink Manual? 0 Play Time 01:44:05 Cumulative 31.7 hours Start 2024.08.25 @ 05:07:49 End 2024.08.25 @ 06:54:22 Sessions 1 Manual Loads 0 Difficulty Rogue Special Mode None Game No. 19 Rogue 19 Adventurer 0 Explorer 0 Win Type - Total 0 Types 0/0/0/0/0/0/0/0/0 Lore% 32 Gallery% 42 Achievement% 37 Wizard Run 0 Options --------- Layout 0 ASCII 0 Keyboard 0 Movement Mouse Keybinds 0 Fullscreen 1 Font 24/Smallcaps Map View 183x50 Zoom Use 0% Tactical HUD 1 Map Filters NONE Filters NONE Steam 0 RUN: 99565a39-0584-44e9-8ec2-2aaa00a7cff0